Cogmind - Beta 17 @@@ ROGUE MODE // 2026.08.19 @ 14:44:02 Player: 4R-ZE3 Result: Self-destructed Performance ------------- Evolutions (2) 1000 Regions Visited (5) 1000 Robots Destroyed (21) 105 Value Destroyed (521) 521 Prototype IDs (23) 460 Alien Tech Used (0) 0 Bonus (325) 325 TOTAL SCORE: 3411 Bonus ------- Follower Combat Kills 25 Aligned with FarCom 300 Cogmind --------- Core Integrity 550/550 Matter 300/300 Energy 265/265 System Corruption 0% Temperature Cool (0) Movement Rolling (125) Ox3 Location -8/Materials Parts ------- > --- POWER (1) -------- Reinforced Ion Engine > --- PROPULSION (2) --- Light Treads Wheel > --- UTILITY (6) ------ Improved Heat Sink Large Storage Unit > --- WEAPON (2) ------- Assault Rifle Assault Rifle > --- INVENTORY (15) --- Ion Engine Ion Engine Light Ion Engine Light Nuclear Core Compact Wheel Compact Wheel Heat Sink Targeting Computer AWS/Thermal Light Assault Rifle Light Assault Rifle Rocket Launcher Rocket Launcher Rocket Launcher Peak State ------------ > --- POWER ------------ Ion Engine > --- PROPULSION ------- Light Treads Wheel > --- UTILITY ---------- Improved Heat Sink Large Storage Unit > --- WEAPON ----------- Assault Rifle Assault Rifle > --- INVENTORY -------- Ion Engine Light Ion Engine Light Nuclear Core Compact Wheel Compact Wheel Heat Sink Targeting Computer AWS/Thermal AWS/Gauss Rocket Launcher Rocket Launcher Rocket Launcher [Rating: 13] Favorites ----------- Power Ion Engine Engine Ion Engine Propulsion Light Treads Treads Light Treads Wheel Wheel Utility Large Storage Unit Device Improved Heat Sink Storage Large Storage Unit Weapon Assault Rifle Ballistic Gun Assault Rifle Build | -11 -10 -10 -10 -9 -8 ------- Run | Yrd Mat Min Exi Min Mat Slots Evolved 4 | . . . . . 4 Power . | . . . . . . Propulsion . | . . . . . . Utility 4 | . . . . . 4 Weapon . | . . . . . . Parts Attached 15 | 6 5 3 . 1 . Power 3 | 1 1 . . 1 . Engine 3 | 1 1 . . 1 . Core . | . . . . . . Reactor . | . . . . . . Propulsion 3 | 2 . 1 . . . Treads 2 | 2 . . . . . Leg . | . . . . . . Wheel 1 | . . 1 . . . Hover . | . . . . . . Flight . | . . . . . . Utility 6 | 1 4 1 . . . Device 2 | . 1 1 . . . Storage 4 | 1 3 . . . . Processor . | . . . . . . Hackware . | . . . . . . Protection . | . . . . . . Artifact . | . . . . . . Weapon 3 | 2 . 1 . . . Energy Gun . | . . . . . . Energy Cannon . | . . . . . . Ballistic Gun 3 | 2 . 1 . . . Ballistic Cannon . | . . . . . . Launcher . | . . . . . . Special Weapon . | . . . . . . Impact Weapon . | . . . . . . Slashing Weapon . | . . . . . . Piercing Weapon . | . . . . . . Special Melee Weapon . | . . . . . . Unidentified Prototypes . | . . . . . . Parts Lost 4 | . 1 3 . . . Power 1 | . 1 . . . . Propulsion 1 | . . 1 . . . Utility 1 | . . 1 . . . Weapon 1 | . . 1 . . . Highest Loss Streak 1 | . 1 1 . . . To Critical Strikes . | . . . . . . Average Backups 11 | 1 7 13 13 13 14 Power 2 | . 2 3 3 3 4 Propulsion 1 | 1 2 1 2 2 2 Utility 1 | . 1 2 2 2 2 Weapon 5 | . 1 7 6 6 6 Tool/Special . | . . . . . . Unused Backups 18 | . 1 . 4 . 13 Power 3 | . . . . . 3 Propulsion 2 | . . . . . 2 Utility 3 | . 1 . . . 2 Weapon 10 | . . . 4 . 6 Tool/Special . | . . . . . . Average Slot Usage (%) 97 | . 93 98 100 100 63 Engine 13 | . 13 14 14 14 9 Treads 20 | . 28 23 14 14 9 Wheel 7 | . . 4 14 14 9 Device 12 | . 8 12 14 14 9 Storage 13 | . 14 14 14 14 9 Ballistic Gun 27 | . 28 28 28 28 18 Peak Build Rating 13 | 6 8 11 13 13 13 Average Rating 10 | 4 7 9 12 12 13 On Entrance 8 | . 6 8 11 12 13 Avg Prop Armor Cover (%) 11 | . . 11 11 11 11 Naked Turns . | . . . . . . Heaviest Build 37 | 12 37 30 30 35 35 Greatest Support 40 | 40 40 40 10 10 10 Greatest Overweight (x) 3 | . . 2 2 3 3 Average Overweight (x) 1 | . . . 2 2 3 Largest Inventory Capacity 15 | 8 15 15 15 15 15 Average Capacity 14 | 7 13 15 15 15 15 Most Carried 15 | 3 13 15 15 15 15 Average Carried 12 | 1 7 13 14 14 15 Final Capacity 15 | 8 15 15 15 15 15 Final Carried 15 | 3 13 15 14 15 15 Class Distribution -------------------- 100% | Mutant Dominant Class ---------------- Mutant | -10/Materials Mutant | -10/Mines Mutant | -10/Exiles Mutant | -9/Mines Mutant | -8/Materials Resources | -11 -10 -10 -10 -9 -8 ----------- Run | Yrd Mat Min Exi Min Mat Matter Collected 600 | 210 197 153 . 40 . Remotely . | . . . . . . Salvage Created 720 | . 242 376 . 102 . Parts 39 | . 15 18 . 6 . Haulers Intercepted . | . . . . . . Recyclers Shooed . | . . . . . . Parts Field Recycled . | . . . . . . Retrieved Matter . | . . . . . . Parts Self-Destructed . | . . . . . . Prevented . | . . . . . . Parts Restored . | . . . . . . Kills | -11 -10 -10 -10 -9 -8 ------- Run | Yrd Mat Min Exi Min Mat Combat Hostiles Destroyed 20 | . 6 10 . 4 . Guns 20 | . 6 10 . 4 . Classes Destroyed 4 | . 1 2 . 1 . Recycler 1 | . . 1 . . . Swarmer 9 | . . 6 . 3 . Grunt 10 | . 6 4 . . . Brawler 1 | . . . . 1 . Best Kill Streak 6 | . 6 5 . 3 . Combat Bots Only 6 | . 6 4 . 3 . Max Kills in Single Turn 1 | . 1 1 . 1 . Gunslinging . | . . . . . . Exploded . | . . . . . . Melee . | . . . . . . Uniques/NPCs Destroyed . | . . . . . . Combat | -11 -10 -10 -10 -9 -8 -------- Run | Yrd Mat Min Exi Min Mat Hostile Shots Fired 87 | . 30 52 . 5 . Missed 31 | . 11 18 . 2 . Hits 56 | . 19 34 . 3 . Projectile 56 | . 19 34 . 3 . Critical Strikes 2 | . . 2 . . . Damage Taken 642 | . 220 399 . 23 . Core 81 | . 26 55 . . . Absorbed by Shields . | . . . . . . Core Remaining (%) 83 | 100 . . . 67 . Volleys Fired 45 | . 17 23 . 5 . Largest 2 | . 2 2 . 2 . Hottest 40 | . 40 40 . 40 . Shots Fired 90 | . 34 46 . 10 . Gun 90 | . 34 46 . 10 . Cannon . | . . . . . . Launcher . | . . . . . . Special . | . . . . . . Kinetic 90 | . 34 46 . 10 . Thermal . | . . . . . . Explosive . | . . . . . . Electromagnetic . | . . . . . . Robot Hit Streak 9 | . 7 9 . 5 . Robot Miss Streak 3 | . 2 3 . 1 . Penetration Max . | . . . . . . Secondary Targets 3 | . . 3 . . . Max Gunslinging Chain 1 | . . 1 . . . Shots Hit Robots 60 | . 26 27 . 7 . Core Hits 32 | . 11 16 . 5 . Critical Kills . | . . . . . . Critical Parts Destroyed . | . . . . . . Critical Strikes . | . . . . . . Melee Attacks . | . . . . . . Impact . | . . . . . . Slashing . | . . . . . . Piercing . | . . . . . . Sneak Attacks . | . . . . . . Combat Hostiles . | . . . . . . Follow-up Attacks . | . . . . . . Damage Inflicted 849 | . 344 416 . 89 . Guns 849 | . 344 416 . 89 . Cannons . | . . . . . . Explosions . | . . . . . . Melee . | . . . . . . Ramming . | . . . . . . Kinetic 849 | . 344 416 . 89 . Thermal . | . . . . . . Explosive . | . . . . . . Electromagnetic . | . . . . . . Impact . | . . . . . . Slashing . | . . . . . . Piercing . | . . . . . . Highest Corruption . | . . . . . . Average Corruption . | . . . . . . Corruption Purged . | . . . . . . Corruption Blocked . | . . . . . . Overload Shots . | . . . . . . Overflow Damage . | . . . . . . Projectiles . | . . . . . . Explosions . | . . . . . . Melee . | . . . . . . Knockbacks . | . . . . . . Impact . | . . . . . . Kinetic . | . . . . . . Secondary . | . . . . . . Self-Inflicted Damage . | . . . . . . Shots . | . . . . . . Rammed . | . . . . . . Targets Rammed . | . . . . . . Kicked . | . . . . . . Crushed . | . . . . . . Highest Temperature 52 | . 2 52 . . . Average Temperature 24 | . 2 25 . . . Received Heat Transfer 336 | . 123 213 . . . Siege Activations . | . . . . . . Martial Activations . | . . . . . . Shielding Activations . | . . . . . . Robots Disrupted . | . . . . . . Combat Hostiles . | . . . . . . Robots Corrupted . | . . . . . . Combat Hostiles . | . . . . . . Parts Fried . | . . . . . . Impact Corruptions . | . . . . . . Robots Melted . | . . . . . . Combat Hostiles . | . . . . . . Parts Melted . | . . . . . . Heat Transferred . | . . . . . . Parts Sabotaged . | . . . . . . Parts Stolen . | . . . . . . Parts Stripped . | . . . . . . Power Chain Reactions . | . . . . . . Alert | -11 -10 -10 -10 -9 -8 ------- Run | Yrd Mat Min Exi Min Mat Maximum Alert Level . | . . . . . . Low Security (%) 100 | 100 100 100 . 100 100 Level 1 . | . . . . . . Level 2 . | . . . . . . Level 3 . | . . . . . . Level 4 . | . . . . . . Level 5 . | . . . . . . High Security . | . . . . . . Max Security . | . . . . . . Peak Influence 120 | . 120 85 . 82 12 Initial 12 | . . . . . 12 Average 33 | . 33 40 . 29 12 Influence Increases 586 | . 179 260 . 147 . Destroy 0b10 Robot/C 420 | . 120 200 . 100 . Destroy 0b10 Robot/NC 5 | . . 5 . . . Destroy Leader 80 | . 20 40 . 20 . Allied During Kill 12 | . . . . 12 . Successful Hack 9 | . 9 . . . . Select Force Hacks 30 | . 30 . . . . Disable Machine 15 | . . . . 15 . Lose Combat Pursuer 15 | . . 15 . . . Influence Decreases 574 | . 179 253 7 115 20 Entered New Map 27 | . . . 7 . 20 Time Decay 497 | . 169 228 . 100 . Lost Part 35 | . 10 25 . . . Lost Ally 15 | . . . . 15 . Squads Dispatched 1 | . 1 . . . . Investigation 1 | . 1 . . . . Extermination . | . . . . . . Reinforcement . | . . . . . . Assault . | . . . . . . Garrison . | . . . . . . Intercept . | . . . . . . Searches Triggered . | . . . . . . Construction Impeded . | . . . . . . Haulers Reinforced . | . . . . . . Active Scanning Responses . | . . . . . . Cargo Convoy Interrupts . | . . . . . . Stealth | -11 -10 -10 -10 -9 -8 --------- Run | Yrd Mat Min Exi Min Mat Distress Signals 1 | . 1 . . . . Communications Jammed . | . . . . . . Distress Signals . | . . . . . . Times Spotted 25 | . 9 11 . 5 . Peak Tracking Total 4 | . 4 4 . 3 . Tactical Retreats 1 | . . 1 . . . Traps | -11 -10 -10 -10 -9 -8 ------- Run | Yrd Mat Min Exi Min Mat Traps Triggered . | . . . . . . Indirectly . | . . . . . . Trap Hack Attempts . | . . . . . . Triggered . | . . . . . . Disarmed . | . . . . . . Reprogrammed . | . . . . . . Reused . | . . . . . . Traps Extracted . | . . . . . . Installed . | . . . . . . Triggered . | . . . . . . Machines | -11 -10 -10 -10 -9 -8 ---------- Run | Yrd Mat Min Exi Min Mat Machines Disabled 2 | . 1 . . 1 . Max in Single Turn 1 | . 1 . . . . Machines Repaired . | . . . . . . Machines Dismantled . | . . . . . . Machines Sabotaged . | . . . . . . Overloaded Fab Kills . | . . . . . . Hacking | -11 -10 -10 -10 -9 -8 --------- Run | Yrd Mat Min Exi Min Mat Machines Accessed 4 | . 3 . 1 . . Terminals 2 | . 2 . . . . Fabricators . | . . . . . . Repair Stations . | . . . . . . Recycling Units 1 | . 1 . . . . Scanalyzers . | . . . . . . Garrison Access . | . . . . . . Total Hacks 8 | . 7 . 1 . . Successful 5 | . 4 . 1 . . Failed 2 | . 2 . . . . Catastrophic . | . . . . . . Database Lockouts 1 | . 1 . . . . Manual 8 | . 7 . 1 . . Terminals 6 | . 6 . . . . Fabricators . | . . . . . . Repair Stations . | . . . . . . Recycling Units 1 | . 1 . . . . Scanalyzers . | . . . . . . Garrison Access . | . . . . . . Terminal Hacks 2 | . 1 . 1 . . Robot Analysis 1 | . 1 . . . . Proto ID Catalog 1 | . . . 1 . . Fabricator Hacks . | . . . . . . Repair Station Hacks . | . . . . . . Recycling Unit Hacks . | . . . . . . Scanalyzer . | . . . . . . Garrison Access Hacks . | . . . . . . Unauthorized Hacks 3 | . 3 . . . . Terminals 2 | . 2 . . . . Botnet 2 | . 2 . . . . Fabricators . | . . . . . . Repair Stations . | . . . . . . Recycling Units 1 | . 1 . . . . Tunnel 1 | . 1 . . . . Scanalyzers . | . . . . . . Garrison Access . | . . . . . . Data Cores Recovered . | . . . . . . Used . | . . . . . . Hacking Detections 1 | . 1 . . . . Full Trace Events . | . . . . . . Feedback Events . | . . . . . . Feedback Blocked . | . . . . . . Robot Schematics Acquired . | . . . . . . Robots Built . | . . . . . . Authchips . | . . . . . . Time . | . . . . . . Total Robot Build Rating . | . . . . . . Part Schematics Acquired . | . . . . . . Parts Built . | . . . . . . Authchips . | . . . . . . Time . | . . . . . . Total Part Build Rating . | . . . . . . Part Studies Acquired . | . . . . . . Parts Repaired . | . . . . . . Time . | . . . . . . Parts Recycled . | . . . . . . Recycled Matter . | . . . . . . Retrieved Matter . | . . . . . . Retrieved Components . | . . . . . . Parts Scanalyzed . | . . . . . . Part Schematics Acquired . | . . . . . . Parts Damaged . | . . . . . . Bothacking | -11 -10 -10 -10 -9 -8 ------------ Run | Yrd Mat Min Exi Min Mat Used RIF Installer . | . . . . . . Robots Hacked . | . . . . . . Non-combat . | . . . . . . Combat . | . . . . . . Robot Hacks Applied . | . . . . . . Relay Couplers Released . | . . . . . . Fabnet Peak Effective % . | . . . . . . Robots Rewired . | . . . . . . Allies Hacked . | . . . . . . Hacks Repelled . | . . . . . . Allies | -11 -10 -10 -10 -9 -8 -------- Run | Yrd Mat Min Exi Min Mat Total Allies 4 | . . 1 . 3 . Largest Group 3 | . . 1 1 3 . Highest-Rated Group 40 | . . 31 31 40 . Highest-Rated Ally 31 | . . 31 31 16 . Total Orders . | . . . . . . Ally Attacks 7 | . . . . 7 . Total Damage 77 | . . . . 77 . Kills 1 | . . . . 1 . Allies Corrupted . | . . . . . . Allies Melted . | . . . . . . Intel | -11 -10 -10 -10 -9 -8 ------- Run | Yrd Mat Min Exi Min Mat Active Infowar (turns) . | . . . . . . Robot Analysis Total 1 | . 1 . . . . Derelict Logs Recovered . | . . . . . . Drone Launches . | . . . . . . Drone Recoveries . | . . . . . . Exploration | -11 -10 -10 -10 -9 -8 ------------- Run | Yrd Mat Min Exi Min Mat Turns Passed 2062 | 60 553 514 643 290 2 Spaces Moved 1424 | 33 298 287 577 228 1 Core 3 | 3 . . . . . Treads 491 | 30 298 163 . . . Legs . | . . . . . . Wheels 930 | . . 124 577 228 1 Hover . | . . . . . . Flight . | . . . . . . Fastest Speed 50 | 50 160 110 110 110 125 Average Speed 128 | 150 160 138 110 119 125 Slowest Speed 240 | 160 160 240 110 125 125 Overloaded Moves . | . . . . . . Propulsion Burnouts . | . . . . . . Robots Hopped . | . . . . . . Potential Cave-ins . | . . . . . . Cave-ins Triggered . | . . . . . . Exploration Rate (%) 41 | 3 47 51 59 46 . Regions Visited 5 Branch Regions 3 Pre-discovered Areas 1 | . 1 . . . . Known Exits Taken . | . . . . . . Unknown Exits Taken 5 | 1 1 1 1 1 . Scrap Searched 2 | . . 1 . 1 . Spaces Dug . | . . . . . . Terrain Destroyed . | . . . . . . Melee . | . . . . . . Projectile . | . . . . . . AOE . | . . . . . . Terrain Rammed . | . . . . . . Walls Destroyed . | . . . . . . Machines Disabled . | . . . . . . Actions | -11 -10 -10 -10 -9 -8 --------- Run | Yrd Mat Min Exi Min Mat Total 1559 | 41 340 355 588 234 1 Wait 45 | . 5 39 . 1 . Move 1419 | 32 297 286 576 227 1 Hop . | . . . . . . Pick Up 24 | 3 12 4 5 . . Fast Attach 11 | 6 4 1 . . . Attach 2 | . . 2 . . . Detach . | . . . . . . Swap 2 | . 1 . . 1 . Drop 11 | . 4 . 7 . . Fire 45 | . 17 23 . 5 . Melee . | . . . . . . Ram . | . . . . . . Kick . | . . . . . . Crush . | . . . . . . Escape Stasis . | . . . . . . Rewire . | . . . . . . Trap . | . . . . . . Miscellaneous . | . . . . . . Route ------- -11/Scrapyard -10/Materials (discovered 2 exits: [*Mat] / [*Min]) -10/Mines (discovered 2 exits: [*Mat] / *Exi) -10/Exiles -9/Mines -8/Materials History --------- Turn | Location | Event 32 | -11/Scrapyard | Discovered new exit (range 16) 61 | -11/Scrapyard | Entered Materials 81 | -10/Materials | Central database locked down 271 | -10/Materials | Discovered new exit (range 12) 289 | -10/Materials | Discovered new exit (range 12) 308 | -10/Materials | Build established: Mutant 614 | -10/Materials | Entered Mines 681 | -10/Mines | Deemed a non-threat by the Exiles lab entrance 683 | -10/Mines | Discovered new exit (range 5) 902 | -10/Mines | Discovered new exit (range 7) 971 | -10/Mines | Received a Mining Laser from a helpful Derelict 1128 | -10/Mines | Entered Exiles 1128 | -10/Exiles | Accompanied by 1 ally 1156 | -10/Exiles | Met 8R-AWN 1174 | -10/Exiles | Met EX-HEX 1203 | -10/Exiles | Met EX-BIN 1216 | -10/Exiles | Aligned with FarCom system 1218 | -10/Exiles | Given EX-Vault access code 1244 | -10/Exiles | Opened EX-Vault 1252 | -10/Exiles | Found AWS/Gauss 1273 | -10/Exiles | Warned to stay clear of 0b10 Research branches 1345 | -10/Exiles | Discovered new exit (range 14) 1460 | -10/Exiles | Found AWS/Thermal 1516 | -10/Exiles | Met EX-DEC 1771 | -10/Exiles | Left Exiles lab with AWS/Thermal 1771 | -10/Exiles | Entered Mines 1789 | -9/Mines | Assisted by bots powering up and referring to "LRC-V3" 1799 | -9/Mines | Received a Rocket Launcher from a helpful Derelict 2043 | -9/Mines | Discovered new exit (range 10) 2061 | -9/Mines | Entered Materials 2061 | -8/Materials | Accompanied by 2 allies 2061 | -8/Materials | Evolved 4 slots: Utility x4 2063 | -8/Materials | Self-destructed Last Messages --------------- 01893_ R-06 Scavenger collects Lgt. Nuclear Core. 01895_ R-06 Scavenger collects Imp. Heat Sink. 01896_ R-06 Scavenger collects Aluminum Leg. 01958_ S-10 Pest destroyed. 01968_ Acquired 17 matter. 01994_ U-05 Engineer lays Concrete. 02006_ Searching scrap... 02006_ Found ECM Suite. 02006_ Found Beam Rifle. 02006_ Found Hammer. 02006_ Found Med. Laser. 02006_ Found 36 Matter. 02007_ Acquired 1 matter. 02020_ T-07 Excavator is excavating. 02043_ EXIT=FOUND PARAMETERS=UTILITY+4 LOCATION=UNKNOWN GOAL=ESCAPE 02061_ Receiving FarCom transmissions... Map ----- +----------------------------------------------------+ | ????????????????????????????????? | | ????????????????????????????????? | | ????????????????????????????????? | | ????????????????????????????????? | | ????????????????????????????????? | | ????????????????????????????????? | | ????????????????????????????????? | | ????????????????????????????????? | | ????????????????????????????????? | | ????????????????????????????????? | | ????????????????????????????????? | | ????????????????????????????????? | | ????????????????????????????????? | | ????????????????????????????????? | | ????????????????????????????????? | | ????????????????????????????????? | | ????????????????????????????????? | | ????????????????????????????????? | | ????????????????????????????????? | | ????????????????????????????????? | | ????????????????????????????????? | | ????????????????????????????????? | | ?????????????? #????????????????? | | ????????????? #????????????????? | | ???????##### #????????????????? | | ???????#@ g #????????????????? | | ???????# +????????????????? | | ???????# g #????????????????? | | ???????##### #????????????????? | | ????????????? #????????????????? | | ?????????????? #????????????????? | | ???????????????#????????????????? | | ????????????????????????????????? | | ????????????????????????????????? | | ????????????????????????????????? | | ????????????????????????????????? | | ????????????????????????????????? | | ????????????????????????????????? | | ????????????????????????????????? | | ????????????????????????????????? | | ????????????????????????????????? | | ????????????????????????????????? | | ????????????????????????????????? | | ????????????????????????????????? | | ????????????????????????????????? | | ????????????????????????????????? | | ????????????????????????????????? | | ????????????????????????????????? | | ????????????????????????????????? | | ????????????????????????????????? | +----------------------------------------------------+ Best States ------------- Heat Dissipation 39 Energy Generation 12 Energy Capacity 265 Matter Stores 300 Matter Capacity 300 Sight Range 16 Terrain Scan Density 10 Evasion (%) 40 Recoil Reduction 2 Item Schematics ----------------- None Robot Schematics ------------------ None Fabricated ------------ Nothing Repaired ---------- Nothing Studied --------- None Alien Tech Used ----------------- None Achievements -------------- None Challenges ------------ None Game ------ Seed LongswordScrapClaws Manual? 0 Play Time 00:09:32 Cumulative 276.1 hours Start 2026.08.19 @ 14:30:57 End 2026.08.19 @ 14:44:02 Sessions 1 Manual Loads 0 Difficulty Rogue Special Mode None Game No. 264 Rogue 210 Adventurer 54 Explorer 0 Win Type - Total 11 Types 7/0/1/1/0/0/0/1/0/1 Lore% 77 Gallery% 66 Achievement% 60 Wizard Run 0 Options --------- Layout 1 ASCII 0 Keyboard 0 Movement Mouse Keybinds 1 Fullscreen 2 Font 32/Tamsyn Map View 50x35 Zoom Use 0% Tactical HUD 1 Map Filters NONE Filters NONE Steam 1 RUN: c27597db-32af-413d-abd7-614e8526e5b6